Cogmind - Beta 13 @@@ ROGUE MODE // 2024.04.21 @ 21:12:57 Player: Decinym Result: Self-destructed Performance ------------- Evolutions (5) 2500 Regions Visited (22) 4400 Robots Destroyed (232) 1160 Value Destroyed (11937) 11937 Prototype IDs (59) 1180 Alien Tech Used (0) 0 Bonus (5994) 5994 TOTAL SCORE: 27171 Bonus ------- High Alert Combat Kills 1731 Follower Combat Kills 958 Entered Garrisons 600 Aligned with FarCom 300 Met Data Miner 300 Met Imprinter 300 Destroyed Z-Imprinter 1000 Triggered Deep Caves Wall 500 Exposed GOLEM Chamber 500 Acquired ECA 300 Friendly Fire -495 Cogmind --------- Core Integrity 466/1000 Matter 285/300 Energy 218/1100 System Corruption 3% Temperature Cool (9) Movement Treading (247) Ox1 Location -5/Factory Parts ------- > --- POWER (2) -------- Assembled Flux Generator > --- PROPULSION (5) --- Improved Treads Armored Medium Treads Armored Medium Treads Armored Medium Treads Assembled Alloy Leg > --- UTILITY (8) ------ High-capacity Storage Unit Assembled Biocell Array Experimental Core Analyzer Experimental Core Analyzer Improved Medium Armor Plating Graphene Brace GOLEM Unit > --- WEAPON (2) ------- Assembled Focal Cannon Assembled Focal Cannon > --- INVENTORY (20) --- Zionite Light DM Reactor Quantum Reactor Quantum Reactor Medium Treads Huge Storage Unit Zionite Biocell (600) Zionite Biocell (600) Long-range Terrain Scanner Surveybot 24 Chip Encrypted Comm Array Precision Energy Filter Zionite Weapon Casing Advanced Shield Generator Advanced System Restoration Module Advanced Plasma Cannon Powered Hammer CR-A16's Pointy Stick Peak State ------------ > --- POWER ------------ Assembled Flux Generator > --- PROPULSION ------- Armored Medium Treads Armored Medium Treads Armored Medium Treads Armored Medium Treads Armored Medium Treads > --- UTILITY ---------- Assembled Nanovents High-capacity Storage Unit Assembled Biocell Array Advanced Terrain Scan Processor Experimental Core Analyzer Graphene Brace GOLEM Unit > --- WEAPON ----------- Assembled Focal Cannon Assembled Focal Cannon > --- INVENTORY -------- Zionite Light DM Reactor Particle Reactor Medium Treads Huge Storage Unit Zionite Biocell Zionite Biocell Long-range Terrain Scanner Surveybot 24 Chip Encrypted Comm Array Experimental Core Analyzer Precision Energy Filter Zionite Weapon Casing Improved Heavy Armor Plating Advanced Shield Generator Advanced Plasma Cannon Heavy Mass Driver Powered Hammer CR-A16's Pointy Stick [Rating: 132] Favorites ----------- Power Cooled Deuterium Engine Engine Cooled Deuterium Engine Power Core Reinforced Fission Core Reactor Assembled Flux Generator Propulsion Light Treads Treads Light Treads Leg Assembled Alloy Leg Wheel Armored Huge Wheel Utility High-capacity Storage Unit Device Improved Sensor Array Storage High-capacity Storage Unit Processor Experimental Targeting Computer Hackware Advanced Hacking Suite Protection Assembled Alloy Armor Weapon Assembled Focal Cannon Energy Gun Particle Gun Energy Cannon Assembled Focal Cannon Ballistic Gun Heavy Machine Gun Ballistic Cannon Heavy Mass Driver Launcher Rocket Launcher Special Weapon RU-N14's Throwing Claymores Impact Weapon Powered Hammer Slashing Weapon Chainsword Piercing Weapon CR-A16's Pointy Stick Build | -11 -10 -10 -10 -9 -8 -8 -8 -8 -7 -7 -7 -7 -6 -6 -6 -6 -6 -6 -5 -5 -5 -5 ------- Run | Yrd Mat Min Exi Min Mat Gar Mat Gar Fac Low Low Dat Pro Fac Low Low Zio Dee Pro Fac Gar Fac Slots Evolved 10 | . . . . . 4 . . . 2 . . . . 2 . . . . . 2 . . Power 1 | . . . . . . . . . 1 . . . . . . . . . . . . . Propulsion 3 | . . . . . 2 . . . . . . . . . . . . . . 1 . . Utility 6 | . . . . . 2 . . . 1 . . . . 2 . . . . . 1 . . Weapon . | . . . . . . . . . . . . . . . . . . . . . . . Parts Attached 225 | . 2 1 18 7 32 12 . 29 19 13 3 . 3 3 2 9 3 35 7 19 2 6 Power 10 | . . 1 . 1 1 1 . . 4 . . . 1 . . 1 . . . . . . Engine 6 | . . 1 . 1 1 . . . 2 . . . . . . 1 . . . . . . Core 4 | . . . . . . 1 . . 2 . . . 1 . . . . . . . . . Reactor . | . . . . . . . . . . . . . . . . . . . . . . . Propulsion 48 | . . . 6 . 9 4 . 5 3 2 2 . 2 . . 2 . 4 . 7 . 2 Treads 41 | . . . 4 . 9 4 . 5 3 1 2 . 2 . . 2 . 2 . 5 . 2 Leg 4 | . . . . . . . . . . . . . . . . . . 2 . 2 . . Wheel 3 | . . . 2 . . . . . . 1 . . . . . . . . . . . . Hover . | . . . . . . . . . . . . . . . . . . . . . . . Flight . | . . . . . . . . . . . . . . . . . . . . . . . Utility 75 | . 1 . 2 3 9 1 . 3 7 5 1 . . 3 1 2 1 22 2 6 2 4 Device 36 | . . . . 2 3 . . 1 3 4 1 . . 2 . 1 . 11 2 4 . 2 Storage 5 | . . . 1 . 1 . . . 1 . . . . . . . . 2 . . . . Processor 9 | . 1 . . . 2 . . . . 1 . . . . . 1 1 1 . . 1 1 Hackware 1 | . . . . . . . . . 1 . . . . . . . . . . . . . Protection 24 | . . . 1 1 3 1 . 2 2 . . . . 1 1 . . 8 . 2 1 1 Artifact . | . . . . . . . . . . . . . . . . . . . . . . . Weapon 92 | . 1 . 10 3 13 6 . 21 5 6 . . . . 1 4 2 9 5 6 . . Energy Gun 14 | . 1 . 2 . 7 . . . . . . . . . . . . 4 . . . . Energy Cannon 14 | . . . 1 1 . . . 1 4 3 . . . . . . . 2 2 . . . Ballistic Gun 32 | . . . 4 1 2 3 . 12 . . . . . . 1 2 1 3 . 3 . . Ballistic Cannon 1 | . . . . . . . . . . . . . . . . . . . . 1 . . Launcher 15 | . . . 2 1 4 . . 1 1 3 . . . . . 2 . . . 1 . . Special Weapon 3 | . . . . . . . . . . . . . . . . . 1 . 2 . . . Impact Weapon 1 | . . . . . . . . . . . . . . . . . . . . 1 . . Slashing Weapon 11 | . . . 1 . . 3 . 7 . . . . . . . . . . . . . . Piercing Weapon 1 | . . . . . . . . . . . . . . . . . . . 1 . . . Special Melee Weapon . | . . . . . . . . . . . . . . . . . . . . . . . Unidentified Prototypes 22 | . . . 1 2 4 . . . 4 1 . . . . . . 1 8 . . 1 . Parts Lost 47 | . . 1 2 . 3 3 . 5 4 . 2 . . . . 2 . 3 5 14 . 3 Power 6 | . . 1 . . . 1 . . 1 . 1 . . . . . . . 1 1 . . Propulsion 9 | . . . 1 . . 1 . 1 1 . . . . . . . . 1 . 3 . 1 Utility 19 | . . . . . 2 1 . 1 1 . 1 . . . . 1 . 2 2 7 . 1 Weapon 13 | . . . 1 . 1 . . 3 1 . . . . . . 1 . . 2 3 . 1 Highest Loss Streak 13 | . . 1 2 . 2 1 . 3 1 . 2 . . . . 2 . 2 2 13 . 2 To Critical Strikes 1 | . . . . . . . . . . . . . . . . . . . . 1 . . Average Slot Usage (%) 89 | . 97 100 99 100 98 99 100 99 90 91 78 84 95 99 96 92 93 79 82 79 82 82 Engine 5 | . 14 14 14 14 9 1 . . 5 15 7 7 7 6 6 9 13 4 . . . . Core 2 | . . . . . . 7 9 9 8 . . . 2 6 6 3 . . . . . . Reactor 1 | . . . . . . . . . . . . . . . . . . 3 5 5 5 5 Treads 19 | . . . 8 28 36 35 36 35 22 17 15 15 29 26 26 26 26 15 . 8 29 28 Leg 6 | . 28 28 16 . . . . . . . . . . . . . . 10 25 17 . . Device 9 | . . . . 1 9 9 9 9 9 14 9 15 15 20 16 12 13 7 8 12 11 8 Storage 9 | . 14 14 14 14 9 9 9 9 7 7 7 7 7 6 6 6 6 11 13 11 11 11 Processor 8 | . 11 14 11 . 5 9 9 9 7 14 15 15 15 13 13 13 13 3 6 5 5 7 Protection 6 | . . . 2 13 10 9 9 9 7 . . . . 5 6 6 6 8 9 4 5 5 Energy Gun 1 | . 1 14 8 . 14 . . . . . . . . . . . . . . . . . Energy Cannon 7 | . . . . 12 1 . . . 12 14 15 15 15 13 11 6 6 8 9 9 11 11 Ballistic Gun 5 | . 26 14 16 14 1 14 18 14 1 . . . . . 1 5 6 3 . . . . Naked Turns . | . . . . . . . . . . . . . . . . . . . . . . . Heaviest Build 141 | 12 14 14 56 56 74 88 88 94 110 91 78 70 84 94 102 100 99 141 141 137 128 128 Greatest Support 135 | 20 20 20 40 40 84 84 80 110 113 113 28 28 96 96 96 101 101 108 84 135 135 135 Greatest Overweight (x) 4 | . . . 3 1 . 1 1 2 . 2 2 2 2 . 1 1 . 2 4 2 . 1 Average Overweight (x) . | . . . 1 1 . . 1 . . 1 2 2 . . . . . . . . . . Largest Inventory Capacity 20 | . 8 8 20 20 20 20 20 20 20 20 20 20 20 20 20 20 20 20 20 20 20 20 Average Capacity 19 | . 8 8 19 20 20 20 20 20 20 20 20 20 20 20 20 20 20 20 20 20 20 20 Most Carried 20 | . 8 8 20 20 20 20 18 20 20 20 20 20 20 20 20 20 20 20 20 20 20 20 Average Carried 18 | . 7 7 13 19 19 18 18 19 19 19 19 20 19 18 19 19 19 19 18 19 19 18 Final Capacity 20 | 8 8 8 20 20 20 20 20 20 20 20 20 20 20 20 20 20 20 20 20 20 20 20 Final Carried 20 | 6 8 8 19 20 20 18 18 20 20 20 20 20 20 20 20 18 20 20 18 20 18 17 Class Distribution -------------------- 56% | Scavenger-Mutant 33% | Mutant 7% | Golem Dominant Class ---------------- Mutant | -10/Materials Mutant | -10/Mines Mutant | -10/Exiles Scavenger-Mutant | -9/Mines Scavenger-Mutant | -8/Materials Scavenger-Mutant | -8/Garrison Scavenger-Mutant | -8/Materials Scavenger-Mutant | -8/Garrison Scavenger-Mutant | -7/Factory Scavenger-Mutant | -7/Lower Caves Mutant | -7/Lower Caves Mutant | -7/Data Miner Mutant | -6/Proximity Caves Scavenger-Mutant | -6/Factory Scavenger-Mutant | -6/Lower Caves Scavenger-Mutant | -6/Lower Caves Scavenger-Mutant | -6/Zion Mutant | -6/Deep Caves Mutant | -5/Proximity Caves Golem | -5/Factory Scavenger-Mutant | -5/Garrison Scavenger-Mutant | -5/Factory Resources | -11 -10 -10 -10 -9 -8 -8 -8 -8 -7 -7 -7 -7 -6 -6 -6 -6 -6 -6 -5 -5 -5 -5 ----------- Run | Yrd Mat Min Exi Min Mat Gar Mat Gar Fac Low Low Dat Pro Fac Low Low Zio Dee Pro Fac Gar Fac Matter Collected 7122 | 200 35 17 1131 106 408 369 . 744 307 288 20 . 40 . 35 220 30 2604 79 412 20 57 Remotely 200 | . . . . . . . . 200 . . . . . . . . . . . . . . Salvage Created 12935 | . 88 143 578 135 700 727 . 703 1145 826 212 . . 30 . 342 . 3178 1715 1215 448 750 Parts 569 | . 1 3 81 12 37 45 . 43 56 36 8 . . 2 . 20 . 55 51 73 13 33 Haulers Intercepted 6 | . . . . . 3 . . . 2 1 . . . . . . . . . . . . Recyclers Shooed 3 | . . . . . 1 . . . . . . . . . . . . . 1 1 . . Parts Field Recycled . | . . . . . . . . . . . . . . . . . . . . . . . Retrieved Matter . | . . . . . . . . . . . . . . . . . . . . . . . Parts Self-Destructed 88 | . . . . . . . . . . 7 5 . 1 . . 12 . . 63 . . . Prevented . | . . . . . . . . . . . . . . . . . . . . . . . Kills | -11 -10 -10 -10 -9 -8 -8 -8 -8 -7 -7 -7 -7 -6 -6 -6 -6 -6 -6 -5 -5 -5 -5 ------- Run | Yrd Mat Min Exi Min Mat Gar Mat Gar Fac Low Low Dat Pro Fac Low Low Zio Dee Pro Fac Gar Fac Combat Hostiles Destroyed 216 | . 2 1 6 5 12 20 . 25 19 19 4 . . . . 7 . 23 31 23 9 10 Melee 2 | . . . 1 . . . . . . . . . . . . . . . 1 . . . Guns 62 | . 2 1 . . 6 20 . 22 . . . . . . . . . 10 . 1 . . Cannons 107 | . . . . 3 . . . 1 15 10 4 . . . . 3 . 11 20 21 9 10 AOE 39 | . . . 5 2 5 . . 2 3 9 . . . . . 3 . . 9 1 . . Classes Destroyed 25 | . 1 2 3 2 4 . . 1 3 2 . . . . . 1 . 3 1 1 1 . Worker 1 | . . . . . . . . . 1 . . . . . . . . . . . . . Builder 4 | . . . . . . . . . 2 . . . . 1 . . . . . . . 1 Tunneler 1 | . . . . 1 . . . . . . . . . . . . . . . . . . Hauler 6 | . . . . . 3 . . . 2 1 . . . . . . . . . . . . Recycler 8 | . . 1 . . 2 . . . 2 . . . . . . . . . 1 1 . 1 Turret 1 | . . . 1 . . . . . . . . . . . . . . . . . . . Watcher 2 | . . . . . 1 1 . . . . . . . . . . . . . . . . Swarmer 50 | . . . . 3 3 10 . 11 3 4 3 . . . . . . . 2 8 3 . Grunt 71 | . 2 . . 2 4 7 . 4 10 8 . . . . . 4 . . 15 4 3 8 Brawler 2 | . . . . . . . . . . . . . . . . . . . 2 . . . Duelist 4 | . . . . . . . . 1 1 . . . . . . . . . 2 . . . Sentry 23 | . . . . . 4 3 . 7 3 . . . . . . . . . 6 . . . Demolisher 1 | . . 1 . . . . . . . . . . . . . . . . . . . . Hunter 17 | . . . . . 1 . . 1 1 . . . . . . 2 . . 3 5 2 2 Programmer 5 | . . . . . . . . . 1 . . . . . . 1 . . . 3 . . Heavy 3 | . . . . . . . . . . . . . . . . . . . . 3 . . Behemoth 1 | . . . . . . . . . . . . . . . . . . . 1 . . . Executioner 1 | . . . . . . . . . . . . . . . . . . . . . 1 . Zionite 7 | . . . 7 . . . . . . . . . . . . . . . . . . . Z-Light 6 | . . . . . . . . . . . . . . . . . . 6 . . . . Packrat 1 | . . . . . . . . . . . 1 . . . . . . . . . . . Samaritan 1 | . . . . . . . . . . . . . . . . 1 . . . . . . Assembler 2 | . . . . . . . . . . . . . . . . . . 2 . . . . Assembled 8 | . . . 5 . . . . . . . . . . . . . . 3 . . . . Golem 14 | . . . . . . . . . . . . . . . . . . 14 . . . . Thug 1 | . . . . . . . . . . 1 . . . . . . . . . . . . Savage 2 | . . . . . . . . . . 2 . . . . . . . . . . . . Butcher 5 | . . . . . . . . . . 5 . . . . . . . . . . . . Guerrilla 1 | . . . . . . . . 1 . . . . . . . . . . . . . . Mutant 2 | . . . . . . . . . . 1 1 . . . . . . . . . . . Best Kill Streak 9 | . 1 1 7 2 6 8 . 5 6 6 3 . . 1 . 6 . 5 7 4 3 9 Combat Bots Only 8 | . 1 1 5 2 5 8 . 5 4 5 3 . . . . 5 . 5 7 4 3 8 Max Kills in Single Turn 5 | . 1 1 2 2 2 2 . 2 5 3 1 . . 1 . 2 . 1 4 1 1 1 Gunslinging 1 | . . . . . . 1 . 1 . . . . . . . . . . . . . . Exploded 4 | . . . 2 2 2 . . 1 2 2 . . . . . 2 . . 4 1 . . Melee 1 | . . . 1 . . . . . . . . . . . . . . . 1 . . . Uniques/NPCs Destroyed 5 | . . . 4 . . . . . . . . . . . . . . 1 . . . . 8R-AWN (-10/Exiles) EX-HEX (-10/Exiles) EX-DEC (-10/Exiles) EX-BIN (-10/Exiles) Z-Imprinter (-6/Deep Caves) Combat | -11 -10 -10 -10 -9 -8 -8 -8 -8 -7 -7 -7 -7 -6 -6 -6 -6 -6 -6 -5 -5 -5 -5 -------- Run | Yrd Mat Min Exi Min Mat Gar Mat Gar Fac Low Low Dat Pro Fac Low Low Zio Dee Pro Fac Gar Fac Hostile Shots Fired 1416 | . 13 2 41 20 68 111 . 200 156 37 20 . 1 . . 42 . 86 208 221 46 144 Missed 366 | . 4 . 6 4 18 17 . 60 49 8 2 . . . . 16 . 24 56 52 11 39 Damage Taken 18391 | . 122 124 650 197 664 1199 . 1480 1341 632 279 . 24 . . 538 . 2081 2212 4075 815 1958 Core 1699 | . 24 26 124 50 27 88 . 76 144 80 77 . . . . 73 . 210 166 303 110 121 Absorbed by Shields 782 | . . . . . 57 . . . 72 . . . 8 . . . . 323 . 322 . . Redirected to Shielding 108 | . . . . . . . . . . . . . . . . . . 108 . . . . Ignored by Resistances 1149 | . . . . . 8 124 . 392 133 . . . . . . . . . 442 50 . . Regen/Repaired (Parts) 935 | . . . . . . . . . . . . . . . . . 935 . . . . . Core Remaining (%) 55 | 100 . . . 10 . . . 65 . . . . 57 . . . . . 47 . . . Volleys Fired 880 | . 11 11 74 10 43 44 . 65 49 40 13 . 18 13 4 18 3 224 91 74 36 39 Largest 2 | . 2 2 2 2 2 2 . 2 2 2 2 . 2 2 2 2 1 2 2 2 2 2 Hottest 180 | . 40 85 65 80 110 46 . 121 128 128 60 . 60 180 60 90 90 115 115 75 50 50 Shots Fired 1379 | . 22 20 88 19 77 87 . 118 92 70 25 . 36 26 8 26 3 274 149 123 64 52 Gun 514 | . 22 20 68 9 64 87 . 113 6 . . . . . . 8 . 92 . 25 . . Cannon 808 | . . . . 9 5 . . 2 84 60 25 . 36 26 8 11 3 182 144 97 64 52 Launcher 52 | . . . 20 1 8 . . 3 2 10 . . . . . 7 . . . 1 . . Special 5 | . . . . . . . . . . . . . . . . . . . 5 . . . Kinetic 436 | . 22 11 67 9 5 87 . 113 6 . . . . . . 8 . 70 . 38 . . Thermal 864 | . . 9 1 9 64 . . 2 84 60 25 . 36 26 8 11 3 182 144 84 64 52 Explosive 57 | . . . 20 1 8 . . 3 2 10 . . . . . 7 . . 5 1 . . Electromagnetic 22 | . . . . . . . . . . . . . . . . . . 22 . . . . Robot Hit Streak 37 | . 13 25 10 5 8 37 . 12 12 11 12 . 13 3 . 13 . 25 21 15 17 15 Robot Miss Streak 6 | . 1 2 3 3 3 1 . 6 2 3 2 . 1 1 . 1 . 5 3 4 2 4 Penetration Max 1 | . . . 1 . . . . 1 . . . . . . . . . . . . . . Secondary Targets 17 | . . . . . 2 7 . 4 . . . . . . . . . 4 . . . . Max Gunslinging Chain 1 | . . . . . 1 1 . 1 . . . . . . . . . 1 . . . . Shots Hit Robots 953 | . 19 16 62 11 54 77 . 90 63 41 19 . 1 4 . 15 . 215 112 83 36 35 Core Hits 530 | . 6 10 45 7 27 34 . 42 32 42 7 . 1 1 . 15 . 131 54 39 14 23 Critical Kills 9 | . . . 3 . . . . 2 1 . . . . . . 1 . 1 1 . . . Critical Parts Destroyed 22 | . . . 14 . . 1 . 6 . . . . . . . . . . . 1 . . Critical Strikes 37 | . . . 18 . 1 1 . 8 1 . . . . . . 1 . 3 3 1 . . Burn 1 | . . . . . 1 . . . . . . . . . . . . . . . . . Meltdown 3 | . . . . . . . . . 1 . . . . . . 1 . . 1 . . . Destroy 28 | . . . 17 . . 1 . 8 . . . . . . . . . 1 . 1 . . Corrupt 2 | . . . . . . . . . . . . . . . . . . 2 . . . . Sever 3 | . . . 1 . . . . . . . . . . . . . . . 2 . . . Melee Attacks 60 | . . . 12 . . 10 . 28 . . . . . . . . . . 7 3 . . Impact 3 | . . . . . . . . . . . . . . . . . . . . 3 . . Slashing 50 | . . . 12 . . 10 . 28 . . . . . . . . . . . . . . Piercing 7 | . . . . . . . . . . . . . . . . . . . 7 . . . Sneak Attacks . | . . . . . . . . . . . . . . . . . . . . . . . Combat Hostiles . | . . . . . . . . . . . . . . . . . . . . . . . Follow-up Attacks . | . . . . . . . . . . . . . . . . . . . . . . . Damage Inflicted 36113 | . 165 184 1921 243 1667 1180 . 1893 2576 2613 514 . 28 108 . 959 . 8434 6491 3820 1642 1675 Guns 6852 | . 158 177 786 65 851 1144 . 1624 49 . . . . . . 80 . 1482 . 436 . . Cannons 21433 | . . . . 87 35 . . 65 1746 1097 514 . 28 108 . 226 . 6864 4174 3172 1642 1675 Explosions 6864 | . . . 605 91 781 . . 204 774 1516 . . . . . 653 . 88 2017 135 . . Melee 796 | . . . 530 . . 36 . . . . . . . . . . . . 153 77 . . Ramming 21 | . 7 7 . . . . . . 7 . . . . . . . . . . . . . Kinetic 6335 | . 158 72 786 65 55 1144 . 1624 49 . . . . . . 80 . 1285 . 1017 . . Thermal 22422 | . . 105 . 87 831 . . 65 2237 1097 514 . 28 108 . 226 . 6952 4264 2591 1642 1675 Explosive 6195 | . . . 605 91 781 . . 204 283 1516 . . . . . 653 . . 1927 135 . . Electromagnetic 197 | . . . . . . . . . . . . . . . . . . 197 . . . . Impact 77 | . . . . . . . . . . . . . . . . . . . . 77 . . Slashing 713 | . . . 530 . . 36 . . . . . . . . . . . . 147 . . . Piercing 153 | . . . . . . . . . . . . . . . . . . . 153 . . . Highest Corruption 3 | . . . . . . 1 1 1 . . . . . . . . . . . 1 1 3 Average Corruption 1 | . . . . . . 1 1 1 . . . . . . . . . . . 1 1 1 Corruption Purged . | . . . . . . . . . . . . . . . . . . . . . . . Corruption Blocked . | . . . . . . . . . . . . . . . . . . . . . . . Effects 37 | . . . . . . 9 . 18 . . . . . . . . . . . 2 5 3 Message Errors 5 | . . . . . . 2 . 2 . . . . . . . . . . . . 1 . Matter Fused 9 | . . . . . . 4 . 3 . . . . . . . . . . . . . 2 Heat Flow Errors 3 | . . . . . . . . 3 . . . . . . . . . . . . . . Energy Discharges 4 | . . . . . . . . 4 . . . . . . . . . . . . . . Parts Fused 1 | . . . . . . . . 1 . . . . . . . . . . . . . . Data Loss (minor) 7 | . . . . . . 2 . 3 . . . . . . . . . . . . 1 1 Data Loss (major) 3 | . . . . . . . . 1 . . . . . . . . . . . 1 1 . Alerts 4 | . . . . . . . . 1 . . . . . . . . . . . 1 2 . Weapon Failures 1 | . . . . . . 1 . . . . . . . . . . . . . . . . Overload Shots 27 | . . . . . . . . . . . . . . 2 . 3 3 5 14 . . . Overflow Damage 1267 | . . . . . 13 . . . 280 22 16 . . . . 50 . 446 249 150 4 37 Projectiles 837 | . . . . . . . . . 38 . 16 . . . . 14 . 434 144 150 4 37 Explosions 411 | . . . . . 13 . . . 242 22 . . . . . 36 . 12 86 . . . Melee 19 | . . . . . . . . . . . . . . . . . . . 19 . . . Knockbacks 10 | . . 1 . . . . . . . . . . . . . . . . . 9 . . Impact 1 | . . 1 . . . . . . . . . . . . . . . . . . . . Kinetic 9 | . . . . . . . . . . . . . . . . . . . . 9 . . Secondary . | . . . . . . . . . . . . . . . . . . . . . . . Self-Inflicted Damage 405 | . . . 2 15 67 . . 19 86 56 . . . . . 74 . 86 . . . . Shots 10 | . . . 1 1 2 . . 1 1 1 . . . . . 2 . 1 . . . . Rammed 2 | . . . . . . . . . 1 . . . . 1 . . . . . . . . Targets Rammed 7 | . 3 2 . . . . . . 1 . . . . 1 . . . . . . . . Kicked 5 | . 3 2 . . . . . . . . . . . . . . . . . . . . Crushed . | . . . . . . . . . . . . . . . . . . . . . . . Highest Temperature 366 | . 18 88 24 148 366 12 . 254 204 36 . . . 36 . 12 2 3 27 19 . 53 Average Temperature 55 | . 10 32 10 66 85 8 . 40 75 22 . . . 24 . 7 1 3 10 10 . 23 Received Heat Transfer 3471 | . 72 . . 81 228 531 . 486 308 108 . . . . . 36 . 328 543 99 81 570 Effects 3 | . . . . . 3 . . . . . . . . . . . . . . . . . Shutdowns 1 | . . . . . 1 . . . . . . . . . . . . . . . . . Short Circuit 1 | . . . . . 1 . . . . . . . . . . . . . . . . . Damage (minor) 1 | . . . . . 1 . . . . . . . . . . . . . . . . . Siege Activations . | . . . . . . . . . . . . . . . . . . . . . . . Robots Corrupted 2 | . . . . . . . . . . . . . . . . . . 2 . . . . Combat Hostiles 2 | . . . . . . . . . . . . . . . . . . 2 . . . . Parts Fried . | . . . . . . . . . . . . . . . . . . . . . . . Impact Corruptions . | . . . . . . . . . . . . . . . . . . . . . . . Robots Melted 4 | . . . . . 1 . . . 1 . . . . . . 1 . . 1 . . . Combat Hostiles 4 | . . . . . 1 . . . 1 . . . . . . 1 . . 1 . . . Parts Melted 32 | . . 1 . . 3 . . . 11 3 2 . . . . 1 . . 5 2 2 2 Heat Transferred 18218 | . . 259 . 185 1739 . . 100 2773 1577 703 . 37 148 . 296 . 3993 3393 1400 822 793 Parts Sabotaged . | . . . . . . . . . . . . . . . . . . . . . . . Parts Stolen . | . . . . . . . . . . . . . . . . . . . . . . . Parts Stripped . | . . . . . . . . . . . . . . . . . . . . . . . Power Chain Reactions 1 | . . . . . . . . . . . . . . . . . . 1 . . . . Alert | -11 -10 -10 -10 -9 -8 -8 -8 -8 -7 -7 -7 -7 -6 -6 -6 -6 -6 -6 -5 -5 -5 -5 ------- Run | Yrd Mat Min Exi Min Mat Gar Mat Gar Fac Low Low Dat Pro Fac Low Low Zio Dee Pro Fac Gar Fac Peak Influence 1766 | . 116 55 . 128 397 1036 505 1766 1289 . . . . 53 . . . . . 627 1242 881 Initial 926 | . . 45 . . 33 113 505 330 926 . . . . . . . . . . 357 438 651 Average 639 | . 53 49 . 90 164 611 505 1130 1108 . . . . 15 . . . . . 358 806 768 Maximum Alert Level 5 | . . . . . 1 3 2 5 4 . . . . . . . . . . 2 4 3 Low Security (%) 19 | . 100 100 . 100 57 9 . . . . . . . 100 . . . . . . . . Level 1 20 | . . . . . 42 4 . 5 . . . . . . . . . . . 82 . . Level 2 15 | . . . . . . 48 100 7 . . . . . . . . . . . 17 37 17 Level 3 26 | . . . . . . 37 . 35 46 . . . . . . . . . . . 49 82 Level 4 14 | . . . . . . . . 34 53 . . . . . . . . . . . 12 . Level 5 3 | . . . . . . . . 16 . . . . . . . . . . . . . . High Security . | . . . . . . . . . . . . . . . . . . . . . . . Max Security . | . . . . . . . . . . . . . . . . . . . . . . . Squads Dispatched 19 | . 1 . . . . . . . 4 . . . . 1 . . . . 3 6 . 4 Investigation 4 | . 1 . . . . . . . . . . . . . . . . . 1 . . 2 Extermination 5 | . . . . . . . . . 2 . . . . . . . . . . 2 . 1 Reinforcement 7 | . . . . . . . . . 2 . . . . 1 . . . . 1 3 . . Assault 3 | . . . . . . . . . . . . . . . . . . . 1 1 . 1 Garrison . | . . . . . . . . . . . . . . . . . . . . . . . Intercept . | . . . . . . . . . . . . . . . . . . . . . . . Searches Triggered . | . . . . . . . . . . . . . . . . . . . . . . . Construction Impeded 1 | . . . . . . . . . . . . . . . . . . . 1 . . . Haulers Reinforced 1 | . . . . . . . . . 1 . . . . . . . . . . . . . Active Scanning Responses . | . . . . . . . . . . . . . . . . . . . . . . . Cargo Convoy Interrupts 1 | . . . . . . . . . . . . . . . . . . . . 1 . . Stealth | -11 -10 -10 -10 -9 -8 -8 -8 -8 -7 -7 -7 -7 -6 -6 -6 -6 -6 -6 -5 -5 -5 -5 --------- Run | Yrd Mat Min Exi Min Mat Gar Mat Gar Fac Low Low Dat Pro Fac Low Low Zio Dee Pro Fac Gar Fac Distress Signals 3 | . . . . . 2 . . . 1 . . . . . . . . . . . . . Communications Jammed 5 | . . . . . . . . . . . . . . . . . . . . 5 . . Distress Signals 1 | . . . . . . . . . . . . . . . . . . . . 1 . . Times Spotted 363 | . 8 5 41 10 17 26 . 34 31 19 4 . 2 2 . 7 . 43 48 35 9 22 Peak Tracking Total 14 | . 4 2 9 3 4 9 . 7 5 5 2 . 2 2 . 4 . 14 9 4 3 9 Tactical Retreats 24 | . . 1 8 3 . . . 7 2 . . . . . . . . . . 2 . 1 Traps | -11 -10 -10 -10 -9 -8 -8 -8 -8 -7 -7 -7 -7 -6 -6 -6 -6 -6 -6 -5 -5 -5 -5 ------- Run | Yrd Mat Min Exi Min Mat Gar Mat Gar Fac Low Low Dat Pro Fac Low Low Zio Dee Pro Fac Gar Fac Traps Triggered 23 | . . . . . . 11 . 8 . . . . . . . . . . . 3 . 1 Indirectly . | . . . . . . . . . . . . . . . . . . . . . . . Trap Hack Attempts . | . . . . . . . . . . . . . . . . . . . . . . . Triggered . | . . . . . . . . . . . . . . . . . . . . . . . Disarmed . | . . . . . . . . . . . . . . . . . . . . . . . Reprogrammed . | . . . . . . . . . . . . . . . . . . . . . . . Reused . | . . . . . . . . . . . . . . . . . . . . . . . Traps Extracted . | . . . . . . . . . . . . . . . . . . . . . . . Installed . | . . . . . . . . . . . . . . . . . . . . . . . Triggered 4 | . . . . . . . . . . . . . . . . . . . . 4 . . Machines | -11 -10 -10 -10 -9 -8 -8 -8 -8 -7 -7 -7 -7 -6 -6 -6 -6 -6 -6 -5 -5 -5 -5 ---------- Run | Yrd Mat Min Exi Min Mat Gar Mat Gar Fac Low Low Dat Pro Fac Low Low Zio Dee Pro Fac Gar Fac Machines Disabled 54 | . . . 13 . . 3 . 8 4 . 1 . . 1 . . 3 2 6 5 5 3 Max in Single Turn 4 | . . . 3 . . 1 . 1 4 . 1 . . 1 . . 1 1 1 1 1 1 Garrison Access 1 | . . . . . . . . . . . . . . . . . . . . 1 . . Garrison Relay 12 | . . . . . . 3 . 5 . . . . . . . . . . . . 4 . Machines Repaired . | . . . . . . . . . . . . . . . . . . . . . . . Machines Dismantled . | . . . . . . . . . . . . . . . . . . . . . . . Machines Sabotaged . | . . . . . . . . . . . . . . . . . . . . . . . Overloaded Fab Kills . | . . . . . . . . . . . . . . . . . . . . . . . Hacking | -11 -10 -10 -10 -9 -8 -8 -8 -8 -7 -7 -7 -7 -6 -6 -6 -6 -6 -6 -5 -5 -5 -5 --------- Run | Yrd Mat Min Exi Min Mat Gar Mat Gar Fac Low Low Dat Pro Fac Low Low Zio Dee Pro Fac Gar Fac Machines Accessed 48 | . 3 1 2 . 7 3 1 2 6 1 1 4 . 2 1 . . . 1 7 2 4 Terminals 25 | . 3 1 . . 5 3 . 2 4 . . . . 2 . . . . . 1 2 2 Fabricators 7 | . . . . . . . . . 2 . . . . . . . . . 1 3 . 1 Repair Stations . | . . . . . . . . . . . . . . . . . . . . . . . Recycling Units . | . . . . . . . . . . . . . . . . . . . . . . . Scanalyzers 1 | . . . . . 1 . . . . . . . . . . . . . . . . . Garrison Access 6 | . . . . . 1 . 1 . . . . . . . . . . . . 3 . 1 Total Hacks 124 | . 7 2 2 . 17 9 4 5 12 1 1 29 . 6 1 . . . 3 11 4 10 Successful 64 | . 3 . 2 . 8 2 1 . 4 1 1 29 . 4 1 . . . 1 3 3 1 Failed 60 | . 4 2 . . 9 7 3 5 8 . . . . 2 . . . . 2 8 1 9 Catastrophic 13 | . 2 . . . 3 2 . . 1 . . . . . . . . . . 4 . 1 Database Lockouts . | . . . . . . . . . . . . . . . . . . . . . . . Manual 38 | . 3 . 1 . 8 3 . . 9 . . . . 4 . . 1 . . 6 1 2 Terminals 59 | . 7 2 . . 12 9 . 5 8 . . . . 6 . . . . . 2 4 4 Fabricators 15 | . . . . . . . . . 4 . . . . . . . . . 3 5 . 3 Repair Stations . | . . . . . . . . . . . . . . . . . . . . . . . Recycling Units . | . . . . . . . . . . . . . . . . . . . . . . . Scanalyzers 4 | . . . . . 4 . . . . . . . . . . . . . . . . . Garrison Access 12 | . . . . . 1 . 4 . . . . . . . . . . . . 4 . 3 Terminal Hacks 47 | . 2 . 2 . 4 1 . . 1 1 1 29 . 3 1 . . . . . 2 . Record 12 | . . . 1 . . . . . . . . 11 . . . . . . . . . . Part Schematic 9 | . . . . . . . . . . . . 9 . . . . . . . . . . Robot Schematic 6 | . . . . . . . . . . . . 6 . . . . . . . . . . Robot Analysis 1 | . 1 . . . . . . . . . . . . . . . . . . . . . Prototype ID Bank 3 | . . . . . . . . . . . . 3 . . . . . . . . . . Open Door 3 | . . . . . . . . . . 1 1 . . . 1 . . . . . . . Level Access Points 1 | . . . . . . . . . 1 . . . . . . . . . . . . . Branch Access Points 3 | . 1 . . . 1 . . . . . . . . 1 . . . . . . . . Emergency Access Points 1 | . . . . . . . . . . . . . . . . . . . . . 1 . Alert Level 2 | . . . . . 2 . . . . . . . . . . . . . . . . . Unreport Threat 1 | . . . . . 1 . . . . . . . . . . . . . . . . . Hauler Manifests 1 | . . . . . . . . . . . . . . 1 . . . . . . . . Zone Layout 1 | . . . . . . . . . . . . . . 1 . . . . . . . . Patrol Navigation 1 | . . . . . . . . . . . . . . . . . . . . . 1 . Security Stations 1 | . . . . . . 1 . . . . . . . . . . . . . . . . Derelict Proto ID Bank 1 | . . . 1 . . . . . . . . . . . . . . . . . . . Fabricator Hacks 4 | . . . . . . . . . 1 . . . . . . . . . 1 1 . 1 Load Schematic 1 | . . . . . . . . . . . . . . . . . . . 1 . . . Build 3 | . . . . . . . . . 1 . . . . . . . . . . 1 . 1 Repair Station Hacks . | . . . . . . . . . . . . . . . . . . . . . . . Recycling Unit Hacks . | . . . . . . . . . . . . . . . . . . . . . . . Scanalyzer 2 | . . . . . 2 . . . . . . . . . . . . . . . . . Insert Component 1 | . . . . . 1 . . . . . . . . . . . . . . . . . Analyze 1 | . . . . . 1 . . . . . . . . . . . . . . . . . Garrison Access Hacks 4 | . . . . . 1 . 1 . . . . . . . . . . . . 2 . . Unlock Access 3 | . . . . . 1 . 1 . . . . . . . . . . . . 1 . . Seal Access 1 | . . . . . . . . . . . . . . . . . . . . 1 . . Unauthorized Hacks 7 | . 1 . . . 1 1 . . 2 . . . . 1 . . . . . . 1 . Terminals 6 | . 1 . . . 1 1 . . 1 . . . . 1 . . . . . . 1 . Botnet 6 | . 1 . . . 1 1 . . 1 . . . . 1 . . . . . . 1 . Fabricators 1 | . . . . . . . . . 1 . . . . . . . . . . . . . Fabnet 1 | . . . . . . . . . 1 . . . . . . . . . . . . . Repair Stations . | . . . . . . . . . . . . . . . . . . . . . . . Recycling Units . | . . . . . . . . . . . . . . . . . . . . . . . Scanalyzers . | . . . . . . . . . . . . . . . . . . . . . . . Garrison Access . | . . . . . . . . . . . . . . . . . . . . . . . Data Cores Recovered . | . . . . . . . . . . . . . . . . . . . . . . . Used . | . . . . . . . . . . . . . . . . . . . . . . . Hacking Detections 37 | . 3 1 . . 7 3 1 2 6 . . . . 2 . . . . 1 5 2 4 Full Trace Events 9 | . 1 . . . . 2 1 2 . . . . . . . . . . 1 . . 2 Feedback Events 1 | . . . . . . 1 . . . . . . . . . . . . . . . . Corruption 1 | . . . . . . 1 . . . . . . . . . . . . . . . . Feedback Blocked . | . . . . . . . . . . . . . . . . . . . . . . . Robot Schematics Acquired 6 | . . . . . . . . . . . . 6 . . . . . . . . . . Robots Built 3 | . . . . . . . . . 1 . . . . . . . . . . 2 . . Authchips . | . . . . . . . . . . . . . . . . . . . . . . . Time 107 | . . . . . . . . . 40 . . . . . . . . . . 67 . . Total Robot Build Rating 9 | . . . . . . . . . 1 . . . . . . . . . . 8 . . Part Schematics Acquired 10 | . . . . . 1 . . . . . . 9 . . . . . . . . . . Parts Built 2 | . . . . . . . . . . . . . . . . . . . . . . 2 Authchips . | . . . . . . . . . . . . . . . . . . . . . . . Time 69 | . . . . . . . . . . . . . . . . . . . . . . 69 Total Part Build Rating 18 | . . . . . . . . . . . . . . . . . . . . . . 18 Parts Repaired . | . . . . . . . . . . . . . . . . . . . . . . . Time . | . . . . . . . . . . . . . . . . . . . . . . . Parts Recycled . | . . . . . . . . . . . . . . . . . . . . . . . Recycled Matter . | . . . . . . . . . . . . . . . . . . . . . . . Retrieved Matter . | . . . . . . . . . . . . . . . . . . . . . . . Retrieved Components . | . . . . . . . . . . . . . . . . . . . . . . . Parts Scanalyzed 1 | . . . . . 1 . . . . . . . . . . . . . . . . . Part Schematics Acquired 1 | . . . . . 1 . . . . . . . . . . . . . . . . . Parts Damaged . | . . . . . . . . . . . . . . . . . . . . . . . Bothacking | -11 -10 -10 -10 -9 -8 -8 -8 -8 -7 -7 -7 -7 -6 -6 -6 -6 -6 -6 -5 -5 -5 -5 ------------ Run | Yrd Mat Min Exi Min Mat Gar Mat Gar Fac Low Low Dat Pro Fac Low Low Zio Dee Pro Fac Gar Fac Used RIF Installer . | . . . . . . . . . . . . . . . . . . . . . . . Robots Hacked 1 | . . . . . . . . . . . . . 1 . . . . . . . . . Non-combat . | . . . . . . . . . . . . . . . . . . . . . . . Combat 1 | . . . . . . . . . . . . . 1 . . . . . . . . . Robot Hacks Applied . | . . . . . . . . . . . . . . . . . . . . . . . Relay Couplers Released 49 | . . . . . . 12 . 21 . . . . . . . . . . . . 16 . Machine Destruction 49 | . . . . . . 12 . 21 . . . . . . . . . . . . 16 . Fabnet Peak Effective % 3 | . . . . . . . . . . . . . 3 3 3 3 3 3 1 1 1 1 Autooverrided 1 | . . . . . . . . . . . . . 1 . . . . . . . . . Robots Rewired 23 | . . . . . . 5 . . . 2 3 . . . . . . . 12 . 1 . Allies Hacked . | . . . . . . . . . . . . . . . . . . . . . . . Hacks Repelled . | . . . . . . . . . . . . . . . . . . . . . . . Allies | -11 -10 -10 -10 -9 -8 -8 -8 -8 -7 -7 -7 -7 -6 -6 -6 -6 -6 -6 -5 -5 -5 -5 -------- Run | Yrd Mat Min Exi Min Mat Gar Mat Gar Fac Low Low Dat Pro Fac Low Low Zio Dee Pro Fac Gar Fac Total Allies 38 | . . 1 . . . 5 . . 1 2 3 . 1 . . . 7 1 12 2 3 . Largest Group 13 | . . 1 . . . 3 3 3 1 2 3 3 3 . . . 7 7 11 13 2 1 Highest-Rated Group 342 | . . 31 . . . 72 72 72 8 40 93 93 93 . . . 302 302 268 342 124 99 Highest-Rated Ally 99 | . . 31 . . . 24 24 24 8 20 31 31 31 . . . 96 99 99 46 99 99 Total Orders . | . . . . . . . . . . . . . . . . . . . . . . . Ally Attacks 192 | . . 1 . . . 15 . 16 . . . . 31 . . . . 52 27 31 6 13 Total Damage 5870 | . . 20 . . . 262 . 355 . . . . 474 . . . . 1556 1867 839 185 312 Kills 48 | . . . . . . 7 . 5 . . . . 2 . . . . 10 15 7 1 1 Allies Corrupted 1 | . . . . . . . . . . . . . . . . . . . 1 . . . Allies Melted 1 | . . . . . . . . . . . . . . . . . . 1 . . . . Intel | -11 -10 -10 -10 -9 -8 -8 -8 -8 -7 -7 -7 -7 -6 -6 -6 -6 -6 -6 -5 -5 -5 -5 ------- Run | Yrd Mat Min Exi Min Mat Gar Mat Gar Fac Low Low Dat Pro Fac Low Low Zio Dee Pro Fac Gar Fac Robot Analysis Total 1 | . 1 . . . . . . . . . . . . . . . . . . . . . Derelict Logs Recovered 8 | . . 1 . . . . . . . . 1 . 1 . 1 2 . . 2 . . . Drone Launches . | . . . . . . . . . . . . . . . . . . . . . . . Drone Recoveries . | . . . . . . . . . . . . . . . . . . . . . . . Exploration | -11 -10 -10 -10 -9 -8 -8 -8 -8 -7 -7 -7 -7 -6 -6 -6 -6 -6 -6 -5 -5 -5 -5 ------------- Run | Yrd Mat Min Exi Min Mat Gar Mat Gar Fac Low Low Dat Pro Fac Low Low Zio Dee Pro Fac Gar Fac Turns Passed 26784 | . 388 230 2002 560 775 1353 30 2163 1053 1467 1056 114 937 284 1425 1264 1552 4544 2184 1874 1028 501 Spaces Moved 12482 | 1 286 163 785 209 371 488 12 780 536 949 762 88 548 153 740 596 984 1671 743 851 538 228 Core . | . . . . . . . . . . . . . . . . . . . . . . . Treads 7611 | . . . 135 209 371 488 12 780 536 294 . . 537 153 740 596 984 762 . 248 538 228 Legs 3204 | 1 286 163 499 . . . . . . . . . . . . . . 909 743 603 . . Wheels 1667 | . . . 151 . . . . . . 655 762 88 11 . . . . . . . . . Hover . | . . . . . . . . . . . . . . . . . . . . . . . Flight . | . . . . . . . . . . . . . . . . . . . . . . . Fastest Speed 120 | 120 120 120 120 240 152 155 242 160 160 130 130 130 130 156 156 156 156 156 136 170 170 168 Average Speed 176 | 120 120 120 217 240 155 220 242 235 160 139 130 130 155 156 190 193 156 180 186 182 170 169 Slowest Speed 510 | 120 120 120 320 240 160 243 242 320 160 160 130 130 156 156 236 236 156 210 510 250 170 247 Overloaded Moves . | . . . . . . . . . . . . . . . . . . . . . . . Propulsion Burnouts . | . . . . . . . . . . . . . . . . . . . . . . . Robots Hopped . | . . . . . . . . . . . . . . . . . . . . . . . Cave-ins Triggered . | . . . . . . . . . . . . . . . . . . . . . . . Exploration Rate (%) 52 | 2 49 35 87 33 33 46 3 78 23 85 76 70 77 7 77 70 87 78 73 28 81 7 Regions Visited 22 Branch Regions 12 Pre-discovered Areas 6 | . . 1 1 1 . . . . . 1 . 1 . . . . 1 . . . . . Known Exits Taken 11 | . 1 . . . 1 . 1 . . 1 1 1 1 1 1 1 . . . 1 . . Unknown Exits Taken 8 | 1 . 1 1 1 . . . . 1 . . . . . . . 1 1 1 . . . Scrap Searched 18 | . . . . . . . . . . 2 3 . 2 . 2 4 4 . 1 . . . Spaces Dug 82 | . . . . . . 3 . 12 3 18 . . 17 7 7 3 . 5 . 3 4 . Terrain Destroyed 551 | . . . 53 13 62 3 . 28 63 99 . . 17 7 7 77 . 34 26 43 13 6 Melee 14 | . . . . . . 3 . 11 . . . . . . . . . . . . . . Projectile 155 | . . . 14 . . . . 6 17 10 . . 17 7 7 3 . 13 13 29 13 6 AOE 381 | . . . 39 13 62 . . 10 46 89 . . . . . 74 . 21 13 14 . . Terrain Rammed . | . . . . . . . . . . . . . . . . . . . . . . . Walls Destroyed . | . . . . . . . . . . . . . . . . . . . . . . . Machines Disabled . | . . . . . . . . . . . . . . . . . . . . . . . Actions | -11 -10 -10 -10 -9 -8 -8 -8 -8 -7 -7 -7 -7 -6 -6 -6 -6 -6 -6 -5 -5 -5 -5 --------- Run | Yrd Mat Min Exi Min Mat Gar Mat Gar Fac Low Low Dat Pro Fac Low Low Zio Dee Pro Fac Gar Fac Total 15812 | . 312 179 984 249 497 663 12 942 637 1021 804 87 597 172 754 679 999 2934 1376 1032 592 290 Wait 1643 | . 6 . 53 15 9 5 . 7 16 1 2 . 27 . 2 53 . 938 427 71 3 8 Move 12460 | . 285 162 784 208 370 487 12 778 535 948 761 87 547 152 739 595 983 1670 742 851 536 228 Hop . | . . . . . . . . . . . . . . . . . . . . . . . Pick Up 116 | . 3 2 25 4 16 1 . 9 5 3 3 . 1 2 1 1 6 20 3 4 3 4 Fast Attach 76 | . 2 . 4 1 11 1 . 4 12 3 1 . 2 . 1 1 . 17 . 13 1 2 Attach 49 | . . 1 4 . 7 3 . 5 3 1 1 . 1 2 1 2 1 7 4 3 1 2 Detach 9 | . . . 1 . . . . . . 1 . . . . 1 . . 2 1 3 . . Swap 101 | . . . 10 6 14 8 . 20 5 9 1 . . 1 . 6 2 11 3 3 . 2 Drop 161 | . 2 1 17 5 27 3 . 10 11 6 4 . 1 1 5 3 4 42 2 6 6 5 Fire 880 | . 11 11 74 10 43 44 . 65 49 40 13 . 18 13 4 18 3 224 91 74 36 39 Melee 60 | . . . 12 . . 10 . 28 . . . . . . . . . . 7 3 . . Ram . | . . . . . . . . . . . . . . . . . . . . . . . Kick 5 | . 3 2 . . . . . . . . . . . . . . . . . . . . Crush 2 | . . . . . . . . . 1 . . . . 1 . . . . . . . . Escape Stasis 33 | . . . . . . 16 . 16 . . . . . . . . . . . 1 . . Rewire 217 | . . . . . . 85 . . . 9 18 . . . . . . 3 96 . 6 . Trap . | . . . . . . . . . . . . . . . . . . . . . . . Miscellaneous . | . . . . . . . . . . . . . . . . . . . . . . . Route ------- -11/Scrapyard -10/Materials (discovered 2 exits: [*Mat] / *Min) -10/Mines (discovered 3 exits: [*Mat x2] / *Exi) -10/Exiles -9/Mines -8/Materials (discovered 4 exits: *Fac / *Sto x2 / Gar) -8/Garrison (discovered 2 exits: *Mat x2) -8/Materials -8/Garrison (discovered 3 exits: *Fac x3) -7/Factory (discovered 5 exits: Fac x4 / *Low) -7/Lower Caves -7/Lower Caves (discovered 2 exits: *Fac / *Dat) -7/Data Miner -6/Proximity Caves -6/Factory (discovered 2 exits: *Low x2) -6/Lower Caves -6/Lower Caves (discovered 2 exits: *Fac / *Zio) -6/Zion (discovered 2 exits: [*Dee] / [*Pro]) -6/Deep Caves -5/Proximity Caves -5/Factory (discovered 2 exits: [*Fac] / Gar) -5/Garrison (discovered 3 exits: *Fac x3) -5/Factory History --------- Turn | Location | Event 1 | -11/Scrapyard | Discovered new exit (range 0) 1 | -11/Scrapyard | Entered Materials 55 | -10/Materials | Discovered new exit (range 15) 128 | -10/Materials | Identified exit to Mines 306 | -10/Materials | Build established: Mutant 389 | -10/Materials | Entered Mines 415 | -10/Mines | Discovered new exit (range 10) 416 | -10/Mines | Learned Materials terminal intel 422 | -10/Mines | Escorted by a lone wolf Derelict 442 | -10/Mines | Learned location of Storage (-8) 454 | -10/Mines | Received a Rocket Launcher from a helpful Derelict 476 | -10/Mines | Discovered new exit (range 5) 524 | -10/Mines | Assembled infested the area 576 | -10/Mines | Met 8R-AWN 578 | -10/Mines | Found Prototype Ballistic Gun 614 | -10/Mines | Discovered new exit (range 5) 619 | -10/Mines | Entered Exiles 648 | -10/Exiles | Welcomed by 8R-AWN 669 | -10/Exiles | Met EX-HEX 833 | -10/Exiles | Learned about 8R-AWN's background 1072 | -10/Exiles | Met EX-DEC 1090 | -10/Exiles | Learned location of Zion (-6) 1494 | -10/Exiles | Met EX-BIN 1533 | -10/Exiles | Aligned with FarCom system 1535 | -10/Exiles | Given EX-Vault access code 1600 | -10/Exiles | Opened EX-Vault 1619 | -10/Exiles | Found Longsword +1 1674 | -10/Exiles | Warned to stay clear of 0b10 Research branches 1807 | -10/Exiles | Attacked by the Exiles 1857 | -10/Exiles | Identified 8R-AWN's Boregun 1928 | -10/Exiles | Core integrity fell below 50% 1941 | -10/Exiles | Destroyed 8R-AWN 1948 | -10/Exiles | Found Prototype Processor 1955 | -10/Exiles | Found Prototype Device 2167 | -10/Exiles | Destroyed EX-HEX 2220 | -10/Exiles | Destroyed EX-DEC 2263 | -10/Exiles | Destroyed EX-BIN 2273 | -10/Exiles | Found Prototype Processor 2590 | -10/Exiles | Discovered new exit (range 14) 2621 | -10/Exiles | Entered Mines 2771 | -9/Mines | Joined a pair of Derelicts in attacking an 0b10 outpost 2833 | -9/Mines | Identified AS-neutralizer No. 17b 3015 | -9/Mines | Core integrity fell below 20% 3083 | -9/Mines | Build established: Scavenger-Mutant 3152 | -9/Mines | Discovered new exit (range 13) 3181 | -9/Mines | Entered Materials 3181 | -8/Materials | Evolved 4 slots: Propulsion x2, Utility x2 3182 | -8/Materials | Loaded intel: 12 terminal locations 3633 | -8/Materials | Identified Exp. Targeting Computer 3689 | -8/Materials | Discovered new exit (range 3) 3770 | -8/Materials | Identified exit to Storage 3936 | -8/Materials | Identified exit to Garrison 3956 | -8/Materials | Entered Garrison 3988 | -8/Garrison | Triggered checkpoint 4156 | -8/Garrison | Destroyed 8 combat bots 4203 | -8/Garrison | Build established: Mutant 4322 | -8/Garrison | Garrison Relay disabled 4394 | -8/Garrison | Triggered checkpoint 4509 | -8/Garrison | Discovered new exit (range 8) 4540 | -8/Garrison | Triggered checkpoint 4559 | -8/Garrison | Build established: Scavenger-Mutant 4615 | -8/Garrison | Garrison Relay disabled 4782 | -8/Garrison | Triggered checkpoint 4818 | -8/Garrison | Learned Materials security intel 5129 | -8/Garrison | Triggered checkpoint 5212 | -8/Garrison | Triggered checkpoint 5235 | -8/Garrison | Garrison Relay disabled 5277 | -8/Garrison | Discovered new exit (range 14) 5309 | -8/Garrison | Entered Materials 5309 | -8/Materials | Accompanied by 3 allies 5339 | -8/Materials | Identified exit to Garrison 5339 | -8/Materials | Entered Garrison 5339 | -8/Garrison | Accompanied by 3 allies 5355 | -8/Garrison | Triggered checkpoint 5439 | -8/Garrison | Triggered checkpoint 5458 | -8/Garrison | Garrison Relay disabled 5483 | -8/Garrison | Triggered checkpoint 5541 | -8/Garrison | Triggered checkpoint 5867 | -8/Garrison | Triggered checkpoint 5917 | -8/Garrison | Garrison Relay disabled 5972 | -8/Garrison | Discovered new exit (range 12) 6169 | -8/Garrison | Triggered checkpoint 6293 | -8/Garrison | Triggered checkpoint 6341 | -8/Garrison | Garrison Relay disabled 6536 | -8/Garrison | Discovered new exit (range 12) 6731 | -8/Garrison | Triggered checkpoint 6755 | -8/Garrison | Garrison Relay disabled 6906 | -8/Garrison | Discovered new exit (range 11) 6933 | -8/Garrison | Attempted to access garrison exit controls, blocked by remote lockdown 6999 | -8/Garrison | Garrison Relay disabled 7410 | -8/Garrison | Lost 3 parts (3w) 7502 | -8/Garrison | Entered Factory 7502 | -7/Factory | Evolved 2 slots: Power x1, Utility x1 7955 | -7/Factory | Identified exit to Factory 8458 | -7/Factory | Fabricated R-06 Scavenger? 8466 | -7/Factory | Discovered new exit (range 9) 8555 | -7/Factory | Entered Lower Caves 8556 | -7/Lower Caves | Encountered a Warlord checkpoint 8561 | -7/Lower Caves | Met a Warlord Commander 8562 | -7/Lower Caves | Learned location of Warlord (-4) 8563 | -7/Lower Caves | Warlord Commander delivered Encrypted Comm Array 8566 | -7/Lower Caves | Found Encrypted Comm Array 9601 | -7/Lower Caves | Attacked by a faux Warlord 9998 | -7/Lower Caves | Discovered new exit (range 11) 10020 | -7/Lower Caves | Identified exit to Lower Caves 10022 | -7/Lower Caves | Entered another Lower Caves area 10039 | -7/Lower Caves | Discovered exit to Factory (range 9) 10045 | -7/Lower Caves | Build established: Skirmisher 10132 | -7/Lower Caves | Attacked by a delusional Derelict stockpiling Unaware 10362 | -7/Lower Caves | Build established: Mutant 10739 | -7/Lower Caves | Learned location of 1 exit from Proximity Caves 10822 | -7/Lower Caves | Encountered a Warlord checkpoint 10907 | -7/Lower Caves | Discovered new exit (range 9) 10927 | -7/Lower Caves | Identified exit to Data Miner 11078 | -7/Lower Caves | Entered Data Miner 11078 | -7/Data Miner | Accompanied by 3 allies 11078 | -7/Data Miner | Discovered new exit (range 6) 11103 | -7/Data Miner | Met Data Miner 11138 | -7/Data Miner | Learned location of Section 7 (-3) 11138 | -7/Data Miner | Acquired the access code to Warlord's prototype stash 11151 | -7/Data Miner | Received God Mode back door access code from Data Miner 11186 | -7/Data Miner | Identified exit to Proximity Caves 11192 | -7/Data Miner | Entered Proximity Caves 11192 | -6/Proximity Caves | Accompanied by 3 allies 11294 | -6/Proximity Caves | Learned location of 1 exit from Factory 12029 | -6/Proximity Caves | Build established: Scavenger-Mutant 12129 | -6/Proximity Caves | Entered Factory 12129 | -6/Factory | Evolved 2 slots: Utility x2 12130 | -6/Factory | Identified exit to Lower Caves 12413 | -6/Factory | Entered Lower Caves 12516 | -6/Lower Caves | Encountered a Warlord checkpoint 13062 | -6/Lower Caves | Learned Factory security intel 13367 | -6/Lower Caves | Discovered new exit (range 16) 13514 | -6/Lower Caves | Found Prototype Device 13836 | -6/Lower Caves | Identified exit to Lower Caves 13838 | -6/Lower Caves | Entered another Lower Caves area 13841 | -6/Lower Caves | Spotted B-75 Beast 13883 | -6/Lower Caves | Discovered new exit (range 8) 14254 | -6/Lower Caves | Learned Factory garrison access intel 14335 | -6/Lower Caves | Learned Factory trap positions 14989 | -6/Lower Caves | Discovered new exit (range 10) 15100 | -6/Lower Caves | Identified exit to Zion 15102 | -6/Lower Caves | Entered Zion 15285 | -6/Zion | Discovered new exit (range 9) 15539 | -6/Zion | Learned Factory emergency access door positions 15930 | -6/Zion | Found Prototype Special Weapon 15931 | -6/Zion | Identified RU-N14's Throwing Claymores 15937 | -6/Zion | Found RU-N14's Throwing Claymores 15940 | -6/Zion | Found RU-N14's Throwing Claymores 16041 | -6/Zion | Gained Derelict followers 16101 | -6/Zion | Given A8's code to call for help 16185 | -6/Zion | Visited the Megawrench Repair Shop 16185 | -6/Zion | Megawrench repaired 12 parts 16220 | -6/Zion | Found CR-A16's Pointy Stick 16621 | -6/Zion | Enhanced Grunt warped into view, answering call for help 16621 | -6/Zion | Enhanced Grunt warped into view, answering call for help 16645 | -6/Zion | Discovered new exit (range 3) 16645 | -6/Zion | Saw the warning signs outside the Deep Caves entrance 16654 | -6/Zion | Entered Deep Caves 16654 | -6/Deep Caves | Accompanied by 7 allies 16862 | -6/Deep Caves | Attacked by Z-Imprinter 16891 | -6/Deep Caves | Allies destroyed Z-Imprinter 16922 | -6/Deep Caves | Lost 5 allies 16982 | -6/Deep Caves | Z-Facility disabled 17076 | -6/Deep Caves | Found Prototype Protection 17076 | -6/Deep Caves | Identified Zio. Weapon Casing 17081 | -6/Deep Caves | Found Zio. Weapon Casing 17136 | -6/Deep Caves | Found Prototype Protection 17136 | -6/Deep Caves | Identified Zio. Heavy Carapace 17241 | -6/Deep Caves | Found Zio. Weapon Casing 17800 | -6/Deep Caves | Spotted AG-04527 17835 | -6/Deep Caves | Destroyed AG-04527 17837 | -6/Deep Caves | Found GOLEM Unit 17937 | -6/Deep Caves | Spotted AG-67235 17988 | -6/Deep Caves | Destroyed AG-67235 17991 | -6/Deep Caves | Found GOLEM Unit 18009 | -6/Deep Caves | Triggered Deep Caves wall 18013 | -6/Deep Caves | Spotted AS-56111 18013 | -6/Deep Caves | Spotted AS-45275 18025 | -6/Deep Caves | Exposed GOLEM chamber 18035 | -6/Deep Caves | Destroyed AS-45275 18040 | -6/Deep Caves | Destroyed AS-56111 18073 | -6/Deep Caves | Found GOLEM Unit 18076 | -6/Deep Caves | Found GOLEM Unit 18387 | -6/Deep Caves | Build established: Golem 18693 | -6/Deep Caves | Found GOLEM Unit 18971 | -6/Deep Caves | Build established: Mutant 19185 | -6/Deep Caves | Identified Heart of Steel 20244 | -6/Deep Caves | Heart of Steel transformed into Warbot 20551 | -6/Deep Caves | Found Zio. Weapon Casing 21097 | -6/Deep Caves | Found Surveybot 24 Chip 21100 | -6/Deep Caves | Found Surveybot 24 Scanner 21121 | -6/Deep Caves | Discovered new exit (range 15) 21198 | -6/Deep Caves | Entered Proximity Caves 21198 | -5/Proximity Caves | Accompanied by 1 ally (Warbot) 21279 | -5/Proximity Caves | Learned Factory stockpile data 21630 | -5/Proximity Caves | Attracted the attention of an 0b10 checkpoint 21827 | -5/Proximity Caves | Attracted the attention of an 0b10 outpost 22067 | -5/Proximity Caves | Spotted B-75 Beast 22068 | -5/Proximity Caves | Entered a huge 0b10 base via the front door 22077 | -5/Proximity Caves | Destroyed B-75 Beast 22389 | -5/Proximity Caves | Discovered new exit (range 16) 22427 | -5/Proximity Caves | Destroyed 7 combat bots 22581 | -5/Proximity Caves | Core integrity fell below 50% 22999 | -5/Proximity Caves | Build established: Golem 23382 | -5/Proximity Caves | Entered Factory 23382 | -5/Factory | Accompanied by 11 allies 23382 | -5/Factory | Evolved 2 slots: Propulsion x1, Utility x1 23383 | -5/Factory | Loaded intel: 77 trap records 23387 | -5/Factory | Loaded intel: 4 garrison access locations 23512 | -5/Factory | Build established: Commander-Golem 23567 | -5/Factory | Fabricated P-60 Hacker (x2) 23691 | -5/Factory | Lost 3 allies 23802 | -5/Factory | Lost 9 allies 24072 | -5/Factory | Build established: Golem 24358 | -5/Factory | Cargo convoy interrupted 24432 | -5/Factory | Spotted B-75 Beast 24603 | -5/Factory | Discovered new exit (range 15) 24748 | -5/Factory | Lost 13 parts (1p3n6u3w) 24984 | -5/Factory | Noticed a derelict Sapper rigging charges 24989 | -5/Factory | Build established: Scavenger-Mutant 25182 | -5/Factory | First assault squad dispatched 25256 | -5/Factory | Identified exit to Garrison 25256 | -5/Factory | Entered Garrison 25256 | -5/Garrison | Warlord forces raided the area 25297 | -5/Garrison | Found embedded Infiltrators 25332 | -5/Garrison | Triggered checkpoint 25332 | -5/Garrison | Triggered checkpoint 25344 | -5/Garrison | Triggered checkpoint 25348 | -5/Garrison | Garrison Relay disabled 25382 | -5/Garrison | Triggered checkpoint 25390 | -5/Garrison | Triggered checkpoint 25497 | -5/Garrison | Discovered new exit (range 10) 25588 | -5/Garrison | Triggered checkpoint 25600 | -5/Garrison | Warlord forces retreated 25610 | -5/Garrison | Triggered checkpoint 25643 | -5/Garrison | Garrison Relay disabled 25645 | -5/Garrison | Lost 6 allies 25842 | -5/Garrison | Garrison Relay disabled 25884 | -5/Garrison | Discovered new exit (range 13) 25935 | -5/Garrison | Attempted to access garrison exit controls, blocked by remote lockdown 26144 | -5/Garrison | Garrison Relay disabled 26178 | -5/Garrison | Spotted Executioner 26210 | -5/Garrison | Destroyed Executioner 26217 | -5/Garrison | Found Prototype Processor 26217 | -5/Garrison | Identified Exp. Core Analyzer (x2) 26228 | -5/Garrison | Rewired Striker 26255 | -5/Garrison | Discovered new exit (range 3) 26284 | -5/Garrison | Entered Factory 26284 | -5/Factory | Accompanied by 1 ally 26482 | -5/Factory | Fabricated Quantum Reactor (x2) 26584 | -5/Factory | First assault squad dispatched 26767 | -5/Factory | Core integrity fell below 50% 26785 | -5/Factory | Self-destructed Last Messages --------------- 26743_ Acquired 10 matter. 26744_ Slug penetrates Wall. 26745_ G-50 Soldier destroyed. 26747_ Penetrated by Slug. 26747_ Slug penetrates Wall. 26748_ H-66 Slayer destroyed. 26748_ C-30 ARC bursts open, deploying its payload. 26748_ G-67 Veteran unfolds itself. 26748_ B-60 Warrior unfolds itself. 26748_ G-50 Soldier unfolds itself. 26748_ I-47 Archangel unfolds itself. 26754_ System corrupted: Component data lost. 26761_ G-50 Soldier destroyed. 26767_ Asb. Focal Cannon integration complete. 26773_ G-50 Soldier destroyed. 26778_ ALERT: Security rotation in progress. 26779_ Arm. Medium Treads destroyed. 26780_ GOLEM Unit beginning Asb. Alloy Leg integration. 26780_ M-13 Machinist repairs I-47 Archangel. 26784_ ALERT: Rogue bot located, Programmers report to Factory Zone 6Z. Map ----- +----------------------------------------------------+ | #?# #??????????????????????????????? | | """""""????# #??????????????????????????????? | | """"???????# #??????????????????????????????? | | """"???????# #????????????? ????????????????? | | """"???????# #???????? ? ????????????????? | | ???????# #??????"""""" ?????????????????? | | """""??????# #??????"""""" ?????????????????? | | ?"""""??????# #???????"""""??????????????????? | | ?""""???????# #???????"""""??????????????????? | | ??"?????????# #???????? ???????????????????? | | ????????????# #???????? ???????????????????? | | +############ ##########+####????????????????? | | #????????????????? | | #????????????????? | | "#????????????????? | | % [ "#????????????????? | | """" """" """" """" """" """"%="#????????????????? | | """" """" """" """" """" """"!%T#????????????????? | | """" """" """" """" """" """"=="#????????????????? | | """" """" """" """" """" """ [ #????????????????? | | """" """" """" """" """" """" #????????????????? | | """" """" """" """" """" """" #????????????????? | | * #????????????????? | | !%*#????????????????? | | ########+################## =%#????????????????? | | ### * #?# *[=%i*@# =!###+###??????????? | | # """ #?#! !"""gg#= * % ??????? | | # "G" """" #?# b""""[+%!!% % ?????? | | # " " """" #?# m """"%#!!%*[!! ??????? | | # """" #?? """"*# =*!!%[ ??????? | | # """" #?? """ !# = ???????? | | ### #?? ! """ #########+##### ??????? | | ## =! """" #??? """"p#??????? ????????????? | | "## =!=!"""" #???? b #??????? ???????????? | | "## !=!"""" #???########???????? ?????????? | | "##] !=%"""" #??????????????????? ?????????? | | "## *!%* #???????????????????? ?????????? | | "########## ####?????????????????????????????????? | | #??###????##????????????????????????????????????? | | #???????????????????????????????????????????????? | | #???????????????????????????????????????????????? | | #???????????????????????????????????????????????? | | #???????????????????????????????????????????????? | | #???????????????????????????????????????????????? | | ##???????????????????????????????????????????????? | | ?????????????????????????????????????????????????? | | ?????????????????????????????????????????????????? | | ?????????????????????????????????????????????????? | | ?????????????????????????????????????????????????? | | ?????????????????????????????????????????????????? | +----------------------------------------------------+ Best States ------------- Heat Dissipation 96 Energy Generation 45 Energy Capacity 1500 Matter Stores 300 Matter Capacity 300 Sight Range 16 Robot Scan Range 15 Terrain Scan Range 24 Terrain Scan Density 210 Jamming Range 16 Armor Coverage 1200 Resistance: KI 30 Resistance: TH 15 Resistance: EX 15 Resistance: EM 15 Resistance: I 15 Resistance: S 15 Resistance: P 15 Weapon Shielding 100 Evasion (%) 55 Targeting Accuracy 12 Core Analysis 12 Recoil Reduction 5 Salvage Targeting 2 Offensive Hacking 14 Item Schematics ----------------- Rnf. Fission Core | -8/Materials | Scanalyzed Combat Drone Bay | -7/Data Miner | Free Lgt. Regenerative Plating | -7/Data Miner | Free Cld. Cesium-ion Thruster | -7/Data Miner | Free Gravity Neutralizer | -7/Data Miner | Free Imp. Heavy Laser | -7/Data Miner | Free Nuclear Pulse Array | -7/Data Miner | Free Adv. System Shield | -7/Data Miner | Free Enh. Gauss Cannon | -7/Data Miner | Free Imp. Fusion Compressor | -7/Data Miner | Free Robot Schematics ------------------ P-60 Hacker | -7/Data Miner | Free A-15 Conveyor | -7/Data Miner | Free M-14 Sweeper | -7/Data Miner | Free G-47 Trooper | -7/Data Miner | Free Y-64 Sentinel | -7/Data Miner | Free M-22 Extractor | -7/Data Miner | Free Fabricated ------------ R-06 Scavenger | x1 | -7/Factory | Preloaded P-60 Hacker | x2 | -5/Factory | Preloaded Quantum Reactor | x2 | -5/Factory | Preloaded Alien Tech Used ----------------- None Achievements -------------- None Challenges ------------ None Game ------ Seed PlatingBattleGreatsword Manual? 0 Play Time 03:02:35 Cumulative 378.8 hours Start 2024.04.04 @ 19:44:17 End 2024.04.21 @ 21:12:57 Sessions 11 Manual Loads 0 Difficulty Rogue Special Mode None Game No. 394 Rogue 394 Adventurer 0 Explorer 0 Win Type - Total 29 Types 16/3/4/1/2/0/3/0/0 Lore% 87 Gallery% 88 Achievement% 82 Wizard Run 0 Options --------- Layout 0 ASCII 0 Keyboard 0 Movement Arrows Keybinds 0 Fullscreen 2 Font 24/Smallcaps Map View 76x50 Zoom Use 0% Tactical HUD 1 Map Filters NONE Filters NONE Steam 1 RUN: cfacd9b8-17fc-45f8-9fcd-5e8b8e9c00fe